bitfinex/quotes_BTCUSD_20230113
["timestamp","ask_amount","ask_price","bid_price","bid_amount"]
[1673631922883,0.81669327,19289.0,19288.0,1.95073062]
[1673631923397,0.81669327,19289.0,19288.0,2.05073062]
[1673631923888,0.83569327,19289.0,19288.0,1.622066]
[1673631924142,0.0094268,19291.0,19289.0,0.80401561]
[1673631924391,0.0094268,19291.0,19290.0,2.91436132]
[1673631924635,0.0094268,19291.0,19290.0,3.17355132]
[1673631924876,0.00988333,19294.0,19291.0,0.00942]
[1673631925112,0.00988333,19294.0,19292.0,1.879399]
[1673631925364,0.10988333,19294.0,19293.0,0.324352]
[1673631925646,0.10988333,19294.0,19292.0,1.036698]
[1673631925647,0.10988333,19294.0,19290.0,0.657403]
[1673631925894,0.21030494,19293.0,19290.0,0.657403]
[1673631926138,0.21030494,19293.0,19289.0,0.518413]
[1673631926384,0.31030494,19293.0,19291.0,0.139]
[1673631926626,0.1,19293.0,19290.0,0.68790248]
[1673631926944,0.101,19293.0,19290.0,0.80090248]
[1673631927162,0.15958333,19294.0,19291.0,0.50756841]
[1673631927405,0.00988333,19294.0,19291.0,1.06592241]
[1673631927650,0.22018827,19294.0,19292.0,0.324352]
[1673631927895,0.22018827,19294.0,19290.0,0.631401]
[1673631927896,0.001,19293.0,19290.0,0.631401]
[1673631928135,0.00988333,19294.0,19290.0,0.60201016]
[1673631928366,0.00988333,19294.0,19291.0,0.65965888]
[1673631929101,0.00988333,19294.0,19291.0,0.69965888]
[1673631929345,0.00988333,19294.0,19292.0,0.1]
[1673631929583,0.00988333,19294.0,19293.0,0.324352]
[1673631929845,0.00988333,19294.0,19293.0,0.518322]
[1673631930087,0.00988333,19294.0,19291.0,1.21803088]
[1673631930088,0.20853333,19294.0,19291.0,0.558372]
[1673631930332,0.32018827,19294.0,19291.0,0.558372]
[1673631930583,0.32018827,19294.0,19291.0,0.518372]
[1673631930856,0.02988333,19294.0,19291.0,0.518372]
[1673631931131,0.00988333,19294.0,19291.0,1.036748]
[1673631931350,0.00988333,19294.0,19292.0,0.424352]
[1673631931590,0.00988333,19294.0,19293.0,2.44876559]
[1673631932099,0.00988333,19294.0,19293.0,1.360996]
[1673631932351,0.02988333,19294.0,19293.0,1.036644]
[1673631932612,0.00988333,19294.0,19293.0,1.036644]
[1673631932859,0.22753333,19294.0,19293.0,0.005]
[1673631933613,0.12753333,19294.0,19293.0,0.005]
[1673631933856,0.02888333,19294.0,19293.0,0.005]
[1673631934610,0.02888333,19294.0,19293.0,1.17556633]
[1673631935118,0.02888333,19294.0,19293.0,2.01824033]
[1673631935363,0.12888333,19294.0,19293.0,0.005]
[1673631937321,0.02888333,19294.0,19293.0,0.005]
[1673631939304,0.02888333,19294.0,19293.0,0.523322]
[1673631939780,0.02388333,19294.0,19293.0,0.523322]
[1673631940266,0.02388333,19294.0,19293.0,1.73684852]
[1673631940507,0.02388333,19294.0,19293.0,2.06101191]
[1673631941262,0.02388333,19294.0,19293.0,2.16101191]
[1673631941510,0.02388333,19294.0,19293.0,2.06101191]
[1673631942253,0.02388333,19294.0,19293.0,2.16101191]
[1673631942772,0.02388333,19294.0,19293.0,1.98224498]
[1673631943017,0.02388333,19294.0,19293.0,1.88224498]
[1673631943781,0.02388333,19294.0,19293.0,0.00481139]
[1673631943782,0.38418827,19294.0,19293.0,0.00481139]
[1673631944020,1.7591971,19294.0,19293.0,0.00481139]
[1673631944265,1.64889216,19294.0,19293.0,0.00481139]
[1673631944758,1.61047333,19294.0,19293.0,0.00481139]
[1673631945010,1.2895721,19296.0,19295.0,6.09553467]
[1673631945262,1.2895721,19296.0,19293.0,0.00481139]
[1673631945263,1.02090148,19294.0,19293.0,0.00481139]
[1673631945513,1.02090148,19294.0,19293.0,1.39e-06]
[1673631945514,4.60021192,19294.0,19293.0,1.39e-06]
[1673631945777,5.87235486,19294.0,19289.0,0.00019]
[1673631945987,0.3011,19290.0,19289.0,0.00019]
[1673631946271,2.611709,19290.0,19289.0,0.00019]
[1673631946516,2.911709,19290.0,19289.0,0.00019]
[1673631946767,1.638406,19290.0,19288.0,0.0201]
[1673631947019,0.2497,19289.0,19288.0,0.0201]
[1673631947265,0.76813,19289.0,19288.0,0.0201]
[1673631947751,1.12863494,19289.0,19288.0,0.0201]
[1673631947996,1.66177444,19289.0,19288.0,0.0201]
[1673631948243,1.66177444,19289.0,19284.0,0.0100744]
[1673631948244,0.01942642,19287.0,19284.0,0.0100744]
[1673631948488,0.1508,19285.0,19284.0,0.0100744]
[1673631948749,1.04404444,19285.0,19284.0,0.0100744]
[1673631948956,0.9337395,19285.0,19284.0,0.0100744]
[1673631949247,0.4006,19285.0,19284.0,0.0100744]
[1673631949489,0.4006,19285.0,19281.0,0.0098844]
[1673631949490,0.854,19284.0,19281.0,0.0098844]
[1673631949737,0.1497,19282.0,19281.0,0.0098844]
[1673631949984,1.186936,19282.0,19281.0,0.0098844]
[1673631950230,0.1497,19282.0,19281.0,0.0098844]
[1673631950479,1.18846,19284.0,19281.0,0.0098844]
[1673631950480,0.669869,19284.0,19281.0,0.0098844]
[1673631950734,0.669869,19284.0,19281.0,0.55974792]
[1673631950980,0.136,19282.0,19281.0,1.07838992]
[1673631951235,0.10019,19286.0,19282.0,0.00944201]
[1673631951733,0.10019,19286.0,19282.0,0.10944201]
[1673631951734,0.00019,19286.0,19282.0,0.10944201]
[1673631951979,0.012,19284.0,19282.0,0.00944201]
[1673631952224,0.22230494,19284.0,19282.0,0.00944201]
[1673631952475,0.1,19283.0,19282.0,0.00944201]
[1673631952966,0.2508,19283.0,19282.0,0.00944201]
[1673631953960,0.769391,19283.0,19282.0,0.00944201]
[1673631954169,1.338142,19283.0,19282.0,0.00944201]
[1673631954442,1.292982,19283.0,19282.0,0.00944201]
[1673631954700,0.774391,19283.0,19282.0,0.00944201]
[1673631955685,2.39613334,19283.0,19282.0,0.00944201]
[1673631955979,2.69615601,19283.0,19282.0,0.00944201]
[1673631956225,2.69615601,19283.0,19282.0,2.01e-06]
[1673631956226,3.91734751,19283.0,19282.0,2.01e-06]
[1673631956725,3.91234751,19283.0,19282.0,2.01e-06]
[1673631956975,3.58965601,19283.0,19282.0,2.01e-06]
[1673631957220,3.66396095,19283.0,19281.0,6.41e-06]
[1673631957463,1.26243896,19282.0,19276.0,0.3]
[1673631957711,3.46576552,19281.0,19277.0,0.00019]
[1673631957961,1.1732913,19280.0,19277.0,0.00019]
[1673631958207,1.0549,19278.0,19277.0,0.00019]
[1673631958448,3.26645762,19278.0,19277.0,0.00019]
[1673631958720,3.26645762,19278.0,19276.0,0.3]
[1673631958721,3.05605268,19278.0,19276.0,0.3]
[1673631958963,0.1,19277.0,19276.0,0.3]
[1673631959212,1.8651847,19278.0,19276.0,0.3]
[1673631959213,1.037476,19278.0,19276.0,0.3]
[1673631959495,0.518752,19277.0,19276.0,0.3]
[1673631959742,1.187204,19277.0,19276.0,0.3]
[1673631959995,1.187204,19277.0,19276.0,0.3113945]
[1673631960501,2.25253724,19277.0,19276.0,0.3113945]
[1673631960750,2.25253724,19277.0,19275.0,0.01112909]
[1673631960751,0.1,19276.0,19275.0,0.01112909]
[1673631961005,0.1,19276.0,19275.0,2.909e-05]
[1673631961006,0.6347327,19276.0,19275.0,2.909e-05]
[1673631961252,1.137558,19276.0,19275.0,2.909e-05]
[1673631961745,1.037558,19276.0,19275.0,2.909e-05]
[1673631961989,0.654752,19277.0,19275.0,2.909e-05]
[1673631962730,0.1,19276.0,19275.0,2.909e-05]
[1673631963460,0.618752,19277.0,19275.0,2.909e-05]
[1673631963958,0.236,19276.0,19275.0,2.909e-05]
[1673631964465,0.618752,19277.0,19275.0,2.909e-05]
[1673631964954,0.136,19277.0,19275.0,0.00105089]
[1673631965201,0.136,19277.0,19275.0,1.03865489]
[1673631965695,0.0002,19279.0,19275.0,1.03865489]
[1673631965938,0.0002,19279.0,19276.0,0.1]
[1673631966185,0.0002,19279.0,19277.0,0.00102169]
[1673631966956,0.1352,19279.0,19277.0,0.00102169]
[1673631967214,0.518672,19280.0,19276.0,1.720573]
[1673631967469,0.136,19279.0,19277.0,0.003]
[1673631968444,0.136,19279.0,19277.0,1.65838249]
[1673631968707,0.518612,19283.0,19278.0,0.90812091]
[1673631968960,0.518576,19284.0,19279.0,1.461732]
[1673631968961,0.00018,19281.0,19279.0,1.461732]
[1673631969212,0.00018,19281.0,19280.0,0.324352]
[1673631969455,0.00018,19281.0,19280.0,1.361696]
[1673631969698,0.00018,19281.0,19280.0,1.037344]
[1673631970223,0.00918,19281.0,19280.0,1.061344]
[1673631970470,0.00918,19281.0,19280.0,1.137344]
[1673631970471,0.00018,19281.0,19280.0,1.137344]
[1673631970977,1.137116,19285.0,19280.0,1.137344]
[1673631970978,1.137118,19285.0,19280.0,1.037344]
[1673631971460,0.016,19281.0,19280.0,0.523672]
[1673631971703,0.818567,19284.0,19280.0,0.518672]
[1673631971944,0.016,19281.0,19280.0,0.523672]
[1673631972193,0.518567,19284.0,19280.0,0.618672]
[1673631972436,0.518567,19284.0,19280.0,0.521672]
[1673631972939,0.618567,19284.0,19280.0,0.521672]
[1673631973184,0.518567,19284.0,19280.0,0.518672]
[1673631973433,0.607567,19284.0,19280.0,0.521672]
[1673631973933,0.089,19284.0,19281.0,0.70219772]
[1673631974178,0.089,19284.0,19282.0,1.361588]
[1673631974425,0.089,19284.0,19283.0,0.324352]
[1673631974667,0.089,19284.0,19283.0,1.512334]
[1673631974927,0.089,19284.0,19283.0,1.612334]
[1673631975184,0.02855128,19287.0,19283.0,1.612334]
[1673631975396,0.02855128,19287.0,19283.0,1.82145496]
[1673631975666,0.02855128,19287.0,19284.0,0.1]
[1673631975910,0.02855128,19287.0,19285.0,1.037074]
[1673631976225,0.04255128,19287.0,19286.0,0.324352]
[1673631976466,0.04255128,19287.0,19286.0,1.361372]
[1673631976701,0.04255128,19287.0,19286.0,1.461372]
[1673631976947,0.04255128,19287.0,19286.0,1.612072]
[1673631977203,0.04255128,19287.0,19286.0,2.21795708]
[1673631977450,0.04255128,19287.0,19286.0,2.06725708]
[1673631977694,0.02955128,19287.0,19286.0,2.06725708]
[1673631977939,0.02855128,19287.0,19286.0,2.06725708]
[1673631978935,0.02955128,19287.0,19286.0,2.11725708]
[1673631981897,0.02955128,19287.0,19286.0,2.20865909]
[1673631982168,0.23985622,19287.0,19286.0,2.10865909]
[1673631982420,0.23985622,19287.0,19286.0,1.411372]
[1673631982421,0.02955128,19287.0,19286.0,1.411372]
[1673631982672,0.02955128,19287.0,19286.0,1.77125044]
[1673631982918,0.02955128,19287.0,19286.0,2.09560244]
[1673631983735,0.00912486,19290.0,19287.0,0.1]
[1673631984000,0.00912486,19290.0,19289.0,0.1508]
[1673631984228,0.00912486,19290.0,19289.0,1.00844496]
[1673631984472,0.00912486,19290.0,19289.0,2.12072572]
[1673631984724,0.00912486,19290.0,19289.0,2.75419868]
[1673631984965,0.00912486,19290.0,19289.0,2.76269868]
[1673631985207,0.00912486,19293.0,19289.0,2.30430496]
[1673631985452,0.00912486,19293.0,19292.0,0.1508]
[1673631985698,0.00912486,19293.0,19292.0,2.557048]
[1673631985959,0.00912486,19293.0,19292.0,2.5580689]
[1673631986699,0.00912486,19293.0,19292.0,3.0079689]
[1673631986943,0.00912486,19293.0,19292.0,4.08990039]
[1673631987190,0.00912486,19293.0,19292.0,3.25642743]
[1673631987444,0.00912486,19293.0,19292.0,2.397748]
[1673631987710,0.00912486,19293.0,19292.0,1.879399]
[1673631987947,0.00912486,19293.0,19292.0,0.141]
[1673631988190,0.00912486,19293.0,19290.0,1.716789]
[1673631988434,0.00912486,19293.0,19292.0,0.14]
[1673631988691,0.00912486,19293.0,19292.0,0.842701]
[1673631988934,0.00912486,19293.0,19292.0,1.36605]
[1673631989186,0.00912486,19293.0,19292.0,0.847701]
[1673631989681,0.00912486,19293.0,19292.0,0.518349]
[1673631990454,0.00912486,19293.0,19292.0,0.009]
[1673631990719,0.19877486,19293.0,19292.0,0.009]
[1673631991459,1.16719686,19293.0,19292.0,0.009]
[1673631991700,0.86719686,19293.0,19292.0,0.0003023]
[1673631991951,1.83501886,19293.0,19292.0,0.0003023]
[1673631992659,1.83501886,19293.0,19286.0,2.327608]
[1673631992934,0.2501,19291.0,19286.0,2.3276]
[1673631993183,0.21030494,19291.0,19288.0,0.53621538]
[1673631993430,0.00912486,19293.0,19288.0,1.57309838]
[1673631993665,0.00912486,19293.0,19289.0,0.1]
[1673631993914,0.00912486,19293.0,19290.0,0.518398]
[1673631994170,0.00912486,19293.0,19290.0,1.036801]
[1673631994421,0.10912486,19293.0,19290.0,1.036801]
[1673631994681,0.11612486,19293.0,19290.0,1.036801]
[1673631994934,0.00912486,19293.0,19290.0,1.036801]
[1673631995177,0.10912486,19293.0,19290.0,1.036801]
[1673631995423,0.00912486,19293.0,19290.0,1.036801]
[1673631995691,0.00912486,19293.0,19288.0,0.518433]
[1673631995930,0.00912486,19293.0,19288.0,0.518435]
[1673631995931,0.21030494,19292.0,19288.0,0.518435]
[1673631996224,1.39670894,19292.0,19287.0,0.518462]
[1673631996492,0.21030494,19291.0,19287.0,0.518462]
[1673631996739,0.72868794,19291.0,19287.0,0.518462]
[1673631997238,0.82868794,19291.0,19287.0,0.518462]
[1673631997732,0.96368794,19291.0,19287.0,0.518462]
[1673631997977,0.653383,19291.0,19287.0,0.518462]
[1673631998219,0.135,19291.0,19288.0,0.67340785]
[1673631998473,0.135,19291.0,19289.0,1.03788106]
[1673631999460,0.00912486,19293.0,19289.0,1.03788106]
[1673631999970,0.136,19291.0,19289.0,1.03788106]
[1673632000216,0.136,19291.0,19289.0,1.66541555]
[1673632000702,0.00912486,19293.0,19289.0,1.66541555]
[1673632000919,0.14512486,19293.0,19289.0,1.76541555]
[1673632001177,0.3554298,19293.0,19289.0,1.66541555]
[1673632001671,0.3194298,19293.0,19289.0,1.66541555]
[1673632002174,0.2194298,19293.0,19289.0,1.66541555]
[1673632002436,0.14512486,19293.0,19290.0,0.63542893]
[1673632002684,0.14512486,19293.0,19291.0,1.87948]
[1673632002928,0.14512486,19293.0,19292.0,0.324352]
[1673632003175,0.14512486,19293.0,19292.0,1.46105]
[1673632003452,0.14512486,19293.0,19292.0,1.879399]
[1673632003698,0.00912486,19293.0,19292.0,1.879399]
[1673632003949,0.01412486,19293.0,19292.0,1.879399]
[1673632004207,0.00912486,19293.0,19292.0,1.879399]
[1673632005424,0.09877486,19293.0,19291.0,0.518375]
[1673632005670,0.14177486,19293.0,19292.0,0.006]
[1673632006229,0.66009686,19293.0,19290.0,0.518386]
[1673632006486,0.9274018,19293.0,19290.0,0.518386]
[1673632006751,0.9324018,19293.0,19290.0,0.518386]
[1673632006990,1.4457238,19293.0,19292.0,0.006]
[1673632007237,1.57841886,19293.0,19292.0,0.006]
[1673632007978,1.57841886,19293.0,19289.0,0.51843]
[1673632007979,1.53541886,19293.0,19289.0,0.51843]
[1673632008235,1.7567238,19293.0,19288.0,0.518436]
[1673632008505,0.31030494,19292.0,19288.0,0.518436]
[1673632008755,1.34702594,19292.0,19288.0,0.518436]
[1673632009023,1.24702594,19292.0,19288.0,0.518436]
[1673632009778,1.36302594,19292.0,19288.0,0.524436]
[1673632010020,0.634353,19292.0,19289.0,0.1]
[1673632010288,0.634353,19292.0,19288.0,1.22896919]
[1673632010532,0.84465794,19292.0,19289.0,0.518425]
[1673632010792,0.634353,19292.0,19289.0,0.518425]
[1673632011042,0.634353,19292.0,19288.0,0.524436]
[1673632011043,0.1,19291.0,19288.0,1.042879]
[1673632011295,0.31030494,19291.0,19288.0,1.042879]
[1673632011544,0.1,19291.0,19288.0,1.036879]
[1673632011788,0.1,19291.0,19289.0,0.006]
[1673632012037,0.1,19291.0,19288.0,1.036883]
[1673632012278,1.136716,19292.0,19288.0,1.042883]
[1673632012525,0.043,19291.0,19288.0,1.036883]
[1673632013027,0.116,19291.0,19289.0,0.006]
[1673632013271,1.031752,19291.0,19287.0,1.036932]
[1673632013583,0.1,19290.0,19287.0,1.036932]
[1673632013790,0.1,19290.0,19286.0,0.00971019]
[1673632013791,0.1508,19289.0,19286.0,0.00971019]
[1673632014038,0.31030494,19288.0,19286.0,0.00971019]
[1673632014283,1.486966,19287.0,19286.0,0.00952019]
[1673632014537,1.586966,19287.0,19286.0,0.00952019]
[1673632015033,1.586966,19287.0,19286.0,0.01552019]
[1673632015034,0.668483,19287.0,19286.0,0.01552019]
[1673632015279,0.64243,19289.0,19286.0,0.00952019]
[1673632015280,0.66923,19289.0,19286.0,0.00952019]
[1673632015555,0.124,19287.0,19286.0,0.01552019]
[1673632016803,0.1,19288.0,19286.0,0.00952019]
[1673632017062,0.1,19288.0,19286.0,0.01552019]
[1673632017319,0.1,19288.0,19286.0,0.00952019]
[1673632017568,1.28768,19289.0,19286.0,0.00952019]
[1673632017569,0.124,19287.0,19286.0,0.00952019]
[1673632017808,0.518401,19291.0,19286.0,1.16765483]
[1673632018055,0.124,19288.0,19286.0,1.69216483]
[1673632018302,0.124,19288.0,19287.0,0.424352]
[1673632018555,0.124,19288.0,19287.0,1.361318]
[1673632018799,0.518373,19292.0,19287.0,1.361318]
[1673632019049,0.113,19291.0,19288.0,0.324352]
[1673632019307,0.113,19291.0,19288.0,0.518452]
[1673632020281,1.136745,19292.0,19288.0,0.518452]
[1673632020521,0.518372,19292.0,19288.0,1.036909]
[1673632020762,0.52746686,19293.0,19288.0,1.036909]
[1673632021028,0.2194298,19293.0,19288.0,1.036909]
[1673632021265,0.113,19291.0,19288.0,1.036909]
[1673632021552,0.21030494,19291.0,19288.0,1.036909]
[1673632021801,0.113,19292.0,19288.0,1.036909]
[1673632022056,0.51030494,19292.0,19288.0,1.036909]
[1673632022307,0.2508,19291.0,19286.0,0.86562019]
[1673632022554,0.21030494,19290.0,19287.0,0.51848]
[1673632023046,0.72870994,19290.0,19287.0,0.51848]
[1673632023295,0.82870994,19290.0,19288.0,0.007]
[1673632023545,0.618405,19290.0,19287.0,0.51848]
[1673632023789,0.4499,19289.0,19286.0,0.00952019]
[1673632024035,0.4499,19289.0,19287.0,0.027]
[1673632024036,0.36110494,19288.0,19287.0,0.027]
[1673632024283,2.151161,19288.0,19287.0,0.027]
[1673632025025,2.151161,19288.0,19286.0,0.00952019]
[1673632025270,0.4,19287.0,19286.0,0.00952019]
[1673632025515,1.436966,19287.0,19286.0,0.00952019]
[1673632025757,1.136966,19287.0,19286.0,0.00952019]
[1673632026013,1.036966,19287.0,19286.0,0.00952019]
[1673632026261,1.436966,19287.0,19286.0,0.00952019]
[1673632026473,1.036966,19287.0,19286.0,0.00952019]
[1673632027020,1.036966,19287.0,19286.0,0.01252019]
[1673632027021,2.602821,19287.0,19286.0,0.01252019]
[1673632027271,3.02759621,19287.0,19286.0,0.01252019]
[1673632027520,3.0280603,19287.0,19286.0,0.01252019]
[1673632027796,2.602821,19287.0,19286.0,0.01252019]
[1673632028292,2.4084987,19287.0,19286.0,0.01252019]
[1673632029762,2.83336621,19287.0,19286.0,0.01252019]
[1673632030769,2.4084987,19287.0,19286.0,0.01252019]
[1673632031015,1.482266,19287.0,19286.0,0.01252019]
[1673632031263,1.181466,19287.0,19286.0,0.01252019]
[1673632031519,0.136,19287.0,19286.0,0.01252019]
[1673632032979,0.136,19287.0,19286.0,0.7755364]
[1673632033219,0.136,19287.0,19286.0,1.56386219]
[1673632033470,0.136,19287.0,19286.0,0.85538219]
[1673632033762,0.136,19287.0,19286.0,0.01252019]
[1673632034006,0.1,19286.0,19284.0,0.23106619]
[1673632034250,0.31030494,19286.0,19283.0,1.93723477]
[1673632034496,0.31030494,19286.0,19283.0,1.26752019]
[1673632034978,0.82881994,19286.0,19283.0,1.26752019]
[1673632035254,0.618515,19286.0,19283.0,1.26752019]
[1673632035484,0.618515,19286.0,19283.0,1.7673953]
[1673632036519,0.720515,19286.0,19284.0,0.003]
[1673632036768,1.239025,19286.0,19284.0,0.003]
[1673632037001,1.239025,19286.0,19283.0,0.00952019]
[1673632037002,0.4496,19285.0,19283.0,0.00952019]
[1673632037238,1.137128,19284.0,19283.0,0.01452019]
[1673632037493,1.137128,19284.0,19283.0,0.00952019]
[1673632037741,1.437128,19284.0,19283.0,0.00952019]
[1673632038467,1.065128,19284.0,19283.0,0.00952019]
[1673632038712,1.365128,19284.0,19283.0,0.00952019]
[1673632039189,1.465128,19284.0,19283.0,0.00952019]
[1673632039437,1.165128,19284.0,19283.0,0.00952019]
[1673632039662,1.465128,19284.0,19283.0,0.00952019]
[1673632040622,2.5088286,19284.0,19283.0,0.00952019]
[1673632040874,2.56110867,19284.0,19283.0,0.00568287]
[1673632041382,2.53310867,19284.0,19283.0,0.00068287]
[1673632041620,2.66710867,19284.0,19283.0,0.00068287]
[1673632041871,2.53310867,19284.0,19283.0,2.87e-06]
[1673632042115,2.6178286,19284.0,19283.0,2.87e-06]
[1673632042345,2.4094607,19284.0,19283.0,2.87e-06]
[1673632046549,2.4094607,19284.0,19282.0,0.00946306]
[1673632046793,0.9843327,19283.0,19282.0,0.00946306]
[1673632047036,2.1215147,19283.0,19282.0,0.00946306]
[1673632047281,2.47605897,19283.0,19282.0,0.00946306]
[1673632047533,2.68636391,19283.0,19281.0,1.16e-05]
[1673632047779,0.02838917,19281.0,19279.0,1.701e-05]
[1673632048027,2.7094207,19280.0,19279.0,1.701e-05]
[1673632048268,3.0094207,19280.0,19275.0,2.909e-05]
[1673632048514,0.1501,19278.0,19275.0,2.909e-05]
[1673632048754,1.706278,19278.0,19275.0,2.909e-05]
[1673632049000,2.114778,19278.0,19275.0,2.909e-05]
[1673632050005,2.114778,19278.0,19275.0,0.50757105]
[1673632050006,1.864678,19278.0,19275.0,0.50757105]
[1673632050265,1.864678,19278.0,19275.0,2.909e-05]
[1673632050767,1.964678,19278.0,19275.0,2.909e-05]
[1673632051006,1.856178,19278.0,19275.0,2.909e-05]
[1673632051247,1.174452,19278.0,19275.0,2.909e-05]
[1673632052073,1.274452,19278.0,19275.0,2.909e-05]
[1673632052306,1.4637677,19278.0,19275.0,2.909e-05]
[1673632052534,1.4722677,19278.0,19275.0,2.909e-05]
[1673632053032,1.7722677,19278.0,19275.0,2.909e-05]
[1673632053276,1.482952,19278.0,19275.0,2.909e-05]
[1673632053489,1.474452,19278.0,19275.0,2.909e-05]
[1673632053727,1.174452,19278.0,19275.0,2.909e-05]
[1673632054494,1.474452,19278.0,19275.0,2.909e-05]
[1673632054747,1.174452,19278.0,19275.0,2.909e-05]
[1673632055240,1.574452,19278.0,19275.0,2.909e-05]
[1673632055490,1.7937677,19278.0,19275.0,2.909e-05]
[1673632055749,2.3124937,19278.0,19275.0,2.909e-05]
[1673632056703,2.093178,19278.0,19275.0,2.909e-05]
[1673632056954,1.693178,19278.0,19275.0,2.909e-05]
[1673632058186,1.693178,19278.0,19277.0,5.41e-06]
[1673632058187,2.05428294,19278.0,19277.0,5.41e-06]
[1673632058428,2.152478,19278.0,19277.0,5.41e-06]
[1673632058667,2.4295979,19278.0,19277.0,5.41e-06]
[1673632058905,2.9558306,19278.0,19277.0,5.41e-06]
[1673632060203,2.6787107,19278.0,19277.0,5.41e-06]
[1673632063397,2.8295107,19278.0,19277.0,5.41e-06]
[1673632063635,3.73860229,19278.0,19277.0,5.41e-06]
[1673632064142,3.97094788,19278.0,19277.0,5.41e-06]
[1673632064420,4.93344788,19278.0,19277.0,5.41e-06]
[1673632064666,4.40920523,19278.0,19277.0,5.41e-06]
[1673632064920,4.54620523,19278.0,19277.0,5.41e-06]
[1673632065171,4.70110229,19278.0,19277.0,5.41e-06]
[1673632065418,5.2244433,19278.0,19277.0,5.41e-06]
[1673632065670,0.17967459,19276.0,19275.0,2.909e-05]
[1673632065917,1.8652073,19276.0,19275.0,2.909e-05]
[1673632066166,3.24032329,19276.0,19275.0,2.909e-05]
[1673632066653,3.08952329,19276.0,19275.0,2.909e-05]
[1673632067196,3.22652329,19276.0,19275.0,2.909e-05]
[1673632068198,3.57417562,19276.0,19275.0,2.909e-05]
[1673632068448,3.22652329,19276.0,19275.0,2.909e-05]
[1673632071147,1.17461259,19276.0,19275.0,2.909e-05]
[1673632071390,1.69339159,19276.0,19275.0,2.909e-05]
[1673632071703,1.69285639,19276.0,19275.0,2.909e-05]
[1673632071950,1.55585639,19276.0,19275.0,2.909e-05]
[1673632072195,1.65585639,19276.0,19275.0,2.909e-05]
[1673632073183,1.95585639,19276.0,19275.0,2.909e-05]
[1673632073926,2.09285639,19276.0,19275.0,0.00102909]
[1673632075399,2.70888909,19276.0,19275.0,0.00102909]
[1673632075642,2.71738909,19276.0,19275.0,0.00102909]
[1673632076668,2.71738909,19276.0,19275.0,3.454e-05]
[1673632077157,3.06649551,19276.0,19275.0,3.454e-05]
[1673632077653,3.31079257,19276.0,19275.0,3.454e-05]
[1673632077933,6.907e-05,19274.0,19272.0,0.01164913]
[1673632078143,2.16524,19273.0,19272.0,0.01164913]
[1673632078666,2.57374,19273.0,19272.0,0.01164913]
[1673632078918,2.48394,19273.0,19272.0,0.01164913]
[1673632080151,2.61994,19273.0,19272.0,0.01264913]
[1673632080411,2.92096418,19273.0,19272.0,0.01264913]
[1673632080684,0.1,19272.0,19269.0,0.00681857]
[1673632080938,2.82069364,19271.0,19269.0,0.00681857]
[1673632081186,0.8262327,19270.0,19269.0,0.00681857]
[1673632081434,2.78364699,19270.0,19269.0,0.00681857]
[1673632081687,1.856823,19270.0,19269.0,0.00681857]
[1673632082183,1.337882,19270.0,19269.0,0.00681857]
[1673632082428,1.037882,19270.0,19269.0,0.00681857]
[1673632082927,1.856823,19270.0,19269.0,0.00681857]
[1673632083170,1.993823,19270.0,19269.0,0.00681857]
[1673632083412,2.093823,19270.0,19269.0,0.00681857]
[1673632083933,2.36552273,19270.0,19269.0,0.00681857]
[1673632084450,2.90025543,19270.0,19269.0,0.00681857]
[1673632085679,2.90031543,19270.0,19269.0,0.00681857]
[1673632086423,3.51232308,19270.0,19269.0,0.00681857]
[1673632086671,3.66704198,19270.0,19269.0,0.00681857]
[1673632086919,3.75684198,19270.0,19269.0,8.57e-06]
[1673632087157,4.07898757,19270.0,19269.0,8.57e-06]
[1673632087404,4.28633702,19270.0,19269.0,8.57e-06]
[1673632087650,5.20792156,19270.0,19269.0,8.57e-06]
[1673632087902,4.60051887,19270.0,19269.0,8.57e-06]
[1673632088148,4.22696866,19270.0,19269.0,8.57e-06]
[1673632088393,3.91712038,19270.0,19269.0,8.57e-06]
[1673632088641,3.63365323,19270.0,19269.0,8.57e-06]
[1673632088905,3.68085323,19270.0,19269.0,8.57e-06]
[1673632089152,4.15699424,19270.0,19269.0,8.57e-06]
[1673632089397,5.37028492,19270.0,19269.0,8.57e-06]
[1673632089893,4.69344306,19270.0,19269.0,8.57e-06]
[1673632090138,6.16008963,19270.0,19269.0,8.57e-06]
[1673632090391,5.85043264,19270.0,19269.0,8.57e-06]
[1673632090650,4.60507252,19270.0,19269.0,8.57e-06]
[1673632090901,4.31561751,19270.0,19269.0,8.57e-06]
[1673632091142,3.23571543,19270.0,19269.0,8.57e-06]
[1673632091404,3.08083578,19270.0,19269.0,8.57e-06]
[1673632092166,2.38083577,19270.0,19269.0,8.57e-06]
[1673632092399,3.14872123,19270.0,19269.0,8.57e-06]
[1673632092658,3.77060402,19270.0,19269.0,8.57e-06]
[1673632093667,3.92544309,19270.0,19269.0,8.57e-06]
[1673632093916,3.97964608,19270.0,19269.0,8.57e-06]
[1673632094158,4.50298709,19270.0,19269.0,8.57e-06]
[1673632095143,4.97070431,19270.0,19269.0,8.57e-06]
[1673632095880,5.143e-05,19268.0,19266.0,0.01275999]
[1673632096134,2.6921207,19267.0,19266.0,0.01275999]
[1673632096404,3.97632248,19267.0,19266.0,0.01275999]
[1673632096652,4.72409195,19267.0,19265.0,0.00019]
[1673632096944,2.08139053,19266.0,19263.0,0.0077484]
[1673632097217,0.1789,19264.0,19263.0,0.0077484]
[1673632097471,2.67025642,19264.0,19263.0,0.0077484]
[1673632097712,2.97025642,19264.0,19263.0,0.0077484]
[1673632097962,3.02253649,19264.0,19263.0,0.0077484]
[1673632098460,3.02253649,19264.0,19263.0,8.4e-06]
[1673632099199,3.15953649,19264.0,19263.0,8.4e-06]
[1673632099935,0.1,19263.0,19257.0,0.40696304]
[1673632100189,2.80723265,19262.0,19257.0,0.0125584]
[1673632100456,1.12090937,19261.0,19257.0,0.01066194]
[1673632100712,1.857648,19260.0,19257.0,0.01066194]
[1673632100985,0.1,19259.0,19257.0,0.01066194]
[1673632101235,1.038528,19258.0,19257.0,0.01066194]
[1673632102258,0.519238,19259.0,19257.0,0.10046194]
[1673632102505,0.519231,19260.0,19257.0,0.10046194]
[1673632102506,0.089,19258.0,19257.0,0.01066194]
[1673632102770,0.089,19258.0,19257.0,0.10046194]
[1673632103005,0.089,19258.0,19257.0,1.03310494]
[1673632103289,0.089,19258.0,19257.0,0.18946194]
[1673632103528,0.089,19258.0,19257.0,0.01066194]
[1673632103772,0.608264,19258.0,19257.0,0.010417]
[1673632104020,1.127588,19258.0,19257.0,0.010417]